Cogmind - Beta 13 @@@ ROGUE MODE // 2024.05.16 @ 20:11:20 Player: Toa of Guts Result: Destroyed by H-55 Commando with Gauss Rifle Performance ------------- Evolutions (2) 1000 Regions Visited (4) 800 Robots Destroyed (96) 480 Value Destroyed (2610) 2610 Prototype IDs (16) 320 Alien Tech Used (0) 0 Bonus (493) 493 TOTAL SCORE: 5703 Bonus ------- High Alert Combat Kills 293 Entered Garrisons 200 Cogmind --------- Core Integrity 0/550 Matter 123/300 Energy 310/310 System Corruption 0% Temperature Cool (29) Movement Walking (125) Location -8/Garrison Parts ------- > --- POWER (1) -------- Cooled Deuterium Engine > --- PROPULSION (3) --- Aluminum Leg Cargo Legs > --- UTILITY (5+2) ---- High-capacity Storage Unit Hacking Suite > --- WEAPON (2) ------- Heavy Particle Cannon > --- INVENTORY (20) --- Cooled Deuterium Engine Cooled Deuterium Engine Wheel High-capacity Matter Pod (23) High-powered Tractor Beam Advanced Beam Cannon Light Assault Rifle Datajack Plasma Cutter Great Maul Peak State ------------ > --- POWER ------------ Cooled Deuterium Engine > --- PROPULSION ------- Aluminum Leg Cargo Legs > --- UTILITY ---------- High-capacity Storage Unit Hacking Suite > --- WEAPON ----------- Heavy Particle Cannon Improved Light Cannon > --- INVENTORY -------- Cooled Deuterium Engine Cooled Deuterium Engine Wheel High-capacity Matter Pod High-powered Tractor Beam Advanced Beam Cannon Light Assault Rifle Datajack Plasma Cutter Great Maul [Rating: 33] Favorites ----------- Power Ion Engine Engine Ion Engine Propulsion Light Treads Treads Light Treads Leg Aluminum Leg Wheel Compact Wheel Utility Heat Sink Device Heat Sink Storage High-capacity Storage Unit Hackware Hacking Suite Protection Scrap Shield Weapon Light Cannon Energy Gun Subdweller Laser Energy Cannon Subdweller Beam Cannon Ballistic Gun Subdweller Machine Gun Ballistic Cannon Light Cannon Launcher Grenade Launcher Impact Weapon Great Maul Special Melee Weapon Datajack Build | -11 -10 -10 -8 -8 ------- Run | Yrd Mat Sub Mat Gar Slots Evolved 4 | . . . 4 . Power . | . . . . . Propulsion 1 | . . . 1 . Utility 3 | . . . 3 . Weapon . | . . . . . Parts Attached 128 | 6 16 21 74 11 Power 5 | 1 . . 4 . Engine 5 | 1 . . 4 . Core . | . . . . . Reactor . | . . . . . Propulsion 25 | 2 2 2 13 6 Treads 14 | 2 2 2 5 3 Leg 5 | . . . 3 2 Wheel 6 | . . . 5 1 Hover . | . . . . . Flight . | . . . . . Utility 32 | 1 3 5 20 3 Device 10 | . 1 3 4 2 Storage 5 | 1 2 1 1 . Processor . | . . . . . Hackware 1 | . . . 1 . Protection 16 | . . 1 14 1 Artifact . | . . . . . Weapon 66 | 2 11 14 37 2 Energy Gun 7 | . 1 6 . . Energy Cannon 6 | . . 1 4 1 Ballistic Gun 16 | 2 1 3 10 . Ballistic Cannon 17 | . 6 1 9 1 Launcher 10 | . 3 3 4 . Special Weapon . | . . . . . Impact Weapon 9 | . . . 9 . Slashing Weapon . | . . . . . Piercing Weapon . | . . . . . Special Melee Weapon 1 | . . . 1 . Unidentified Prototypes . | . . . . . Parts Lost 22 | . . 1 7 14 Power . | . . . . . Propulsion 7 | . . . 1 6 Utility 10 | . . 1 4 5 Weapon 5 | . . . 2 3 Highest Loss Streak 12 | . . 1 5 12 To Critical Strikes 1 | . . . . 1 Average Slot Usage (%) 94 | . 99 89 97 95 Engine 12 | . 14 14 9 9 Treads 23 | . 28 28 18 1 Wheel 3 | . . . 8 7 Device 8 | . 13 4 11 5 Storage 8 | . 14 5 9 9 Protection 12 | . . 8 21 18 Energy Gun 5 | . . 11 1 . Energy Cannon 3 | . . 4 3 . Ballistic Gun 7 | . 1 8 8 8 Ballistic Cannon 7 | . 25 3 3 9 Naked Turns . | . . . . . Heaviest Build 81 | 12 32 38 81 77 Greatest Support 60 | 40 40 40 60 16 Greatest Overweight (x) 5 | . . . 5 4 Average Overweight (x) 1 | . . . 3 3 Largest Inventory Capacity 20 | 8 15 15 20 20 Average Capacity 13 | 6 11 9 19 20 Most Carried 20 | 6 12 15 20 18 Average Carried 12 | 4 10 8 18 17 Final Capacity 20 | 8 15 15 20 20 Final Carried 18 | 6 11 12 18 10 Class Distribution -------------------- 57% | Mutant 28% | Subdweller-Mutant 13% | Scavenger-Mutant Dominant Class ---------------- Mutant | -10/Materials Subdweller-Mutant | -10/Subcaves Mutant | -8/Materials Scavenger-Mutant | -8/Garrison Resources | -11 -10 -10 -8 -8 ----------- Run | Yrd Mat Sub Mat Gar Matter Collected 2769 | 250 366 619 1388 146 Remotely . | . . . . . Salvage Created 2704 | . 421 382 1682 219 Parts 175 | . 33 23 101 18 Haulers Intercepted 5 | . 2 . 3 . Recyclers Shooed . | . . . . . Parts Field Recycled . | . . . . . Retrieved Matter . | . . . . . Parts Self-Destructed 13 | . . 13 . . Prevented . | . . . . . Kills | -11 -10 -10 -8 -8 ------- Run | Yrd Mat Sub Mat Gar Combat Hostiles Destroyed 66 | . 9 10 38 9 Guns 25 | . 2 6 11 6 Cannons 20 | . 1 4 12 3 AOE 21 | . 6 . 15 . Classes Destroyed 13 | . 7 2 4 . Worker 3 | . . . 3 . Builder 6 | . 2 . 4 . Hauler 5 | . 2 . 3 . Recycler 7 | . 2 . 5 . Mechanic 2 | . 1 . 1 . Watcher 7 | . 3 . 4 . Swarmer 19 | . 6 . 9 4 Grunt 22 | . 3 . 18 1 Duelist 1 | . . . 1 . Protector 1 | . . . 1 . Sentry 13 | . . 1 8 4 Hunter 1 | . . . 1 . Subdweller 9 | . . 9 . . Best Kill Streak 9 | . 7 2 9 4 Combat Bots Only 7 | . 3 2 7 4 Max Kills in Single Turn 4 | . 3 1 4 1 Gunslinging . | . . . . . Exploded 2 | . 2 . 2 . Melee . | . . . . . Uniques/NPCs Destroyed . | . . . . . Combat | -11 -10 -10 -8 -8 -------- Run | Yrd Mat Sub Mat Gar Hostile Shots Fired 433 | . 19 41 233 140 Missed 93 | . 5 10 50 28 Damage Taken 5693 | . 267 735 3261 1430 Core 684 | . 18 116 413 137 Absorbed by Shields . | . . . . . Core Remaining (%) 73 | 100 . 46 . . Volleys Fired 289 | . 30 105 124 30 Largest 2 | . 2 2 2 2 Hottest 143 | . 70 140 143 114 Shots Fired 445 | . 51 134 201 59 Gun 172 | . 12 51 81 28 Cannon 240 | . 30 74 105 31 Launcher 33 | . 9 9 15 . Special . | . . . . . Kinetic 237 | . 36 26 117 58 Thermal 175 | . 6 99 69 1 Explosive 33 | . 9 9 15 . Electromagnetic . | . . . . . Robot Hit Streak 17 | . 7 17 11 7 Robot Miss Streak 5 | . 5 2 5 4 Penetration Max . | . . . . . Secondary Targets . | . . . . . Shots Hit Robots 221 | . 27 44 111 39 Core Hits 146 | . 24 15 91 16 Critical Kills . | . . . . . Critical Parts Destroyed 1 | . . 1 . . Critical Strikes 4 | . 1 1 . 2 Destroy 1 | . . 1 . . Blast 3 | . 1 . . 2 Melee Attacks 22 | . . . 22 . Impact 21 | . . . 21 . Slashing . | . . . . . Piercing . | . . . . . Sneak Attacks 1 | . . . 1 . Combat Hostiles . | . . . . . Follow-up Attacks . | . . . . . Damage Inflicted 6539 | . 919 899 3988 733 Guns 2111 | . 122 502 1079 408 Cannons 1969 | . 260 397 987 325 Explosions 2459 | . 537 . 1922 . Melee . | . . . . . Ramming . | . . . . . Kinetic 2857 | . 326 322 1501 708 Thermal 1279 | . 112 577 565 25 Explosive 2403 | . 481 . 1922 . Electromagnetic . | . . . . . Impact . | . . . . . Slashing . | . . . . . Piercing . | . . . . . Highest Corruption . | . . . . . Average Corruption . | . . . . . Corruption Purged . | . . . . . Corruption Blocked . | . . . . . Overload Shots . | . . . . . Overflow Damage 156 | . 62 . 94 . Projectiles 13 | . 5 . 8 . Explosions 143 | . 57 . 86 . Melee . | . . . . . Knockbacks 10 | . 2 1 6 1 Impact . | . . . . . Kinetic 10 | . 2 1 6 1 Secondary . | . . . . . Self-Inflicted Damage 362 | . 103 30 229 . Shots 16 | . 4 3 9 . Rammed . | . . . . . Targets Rammed . | . . . . . Kicked . | . . . . . Crushed . | . . . . . Highest Temperature 382 | . . 72 382 126 Average Temperature 96 | . . 34 108 40 Received Heat Transfer 2025 | . 54 81 1413 477 Effects 3 | . . . 3 . Shutdowns 1 | . . . 1 . Energy Bleed 2 | . . . 2 . Siege Activations . | . . . . . Robots Corrupted . | . . . . . Combat Hostiles . | . . . . . Parts Fried . | . . . . . Impact Corruptions . | . . . . . Robots Melted . | . . . . . Combat Hostiles . | . . . . . Parts Melted 6 | . 2 2 2 . Heat Transferred 1835 | . 175 746 877 37 Parts Sabotaged . | . . . . . Parts Stolen . | . . . . . Parts Stripped . | . . . . . Power Chain Reactions . | . . . . . Alert | -11 -10 -10 -8 -8 ------- Run | Yrd Mat Sub Mat Gar Peak Influence 812 | . 364 . 812 680 Initial 530 | . . . . 530 Average 253 | . 105 . 289 601 Maximum Alert Level 3 | . 1 . 3 2 Low Security (%) 57 | 100 84 . 50 . Level 1 9 | . 15 . 7 . Level 2 31 | . . . 38 100 Level 3 2 | . . . 3 . Level 4 . | . . . . . Level 5 . | . . . . . High Security . | . . . . . Max Security . | . . . . . Squads Dispatched 9 | . 1 . 8 . Investigation 1 | . . . 1 . Extermination . | . . . . . Reinforcement 4 | . 1 . 3 . Assault 2 | . . . 2 . Garrison 2 | . . . 2 . Intercept . | . . . . . Searches Triggered . | . . . . . Construction Impeded . | . . . . . Haulers Reinforced . | . . . . . Active Scanning Responses . | . . . . . Cargo Convoy Interrupts . | . . . . . Stealth | -11 -10 -10 -8 -8 --------- Run | Yrd Mat Sub Mat Gar Distress Signals 3 | . . . 3 . Communications Jammed . | . . . . . Distress Signals . | . . . . . Times Spotted 105 | . 16 17 57 15 Peak Tracking Total 9 | . 4 2 9 9 Tactical Retreats 5 | . . 2 3 . Traps | -11 -10 -10 -8 -8 ------- Run | Yrd Mat Sub Mat Gar Traps Triggered 4 | . . 1 1 2 Indirectly . | . . . . . Trap Hack Attempts . | . . . . . Triggered . | . . . . . Disarmed . | . . . . . Reprogrammed . | . . . . . Reused . | . . . . . Traps Extracted . | . . . . . Installed . | . . . . . Triggered . | . . . . . Machines | -11 -10 -10 -8 -8 ---------- Run | Yrd Mat Sub Mat Gar Machines Disabled 8 | . 2 1 4 1 Max in Single Turn 1 | . 1 1 1 1 Machines Repaired . | . . . . . Machines Dismantled . | . . . . . Machines Sabotaged . | . . . . . Overloaded Fab Kills . | . . . . . Hacking | -11 -10 -10 -8 -8 --------- Run | Yrd Mat Sub Mat Gar Machines Accessed 18 | . 8 2 8 . Terminals 14 | . 8 . 6 . Fabricators . | . . . . . Repair Stations . | . . . . . Recycling Units . | . . . . . Scanalyzers 1 | . . . 1 . Garrison Access 1 | . . . 1 . Total Hacks 60 | . 27 7 26 . Successful 39 | . 17 7 15 . Failed 21 | . 10 . 11 . Catastrophic 6 | . 3 . 3 . Database Lockouts . | . . . . . Manual 18 | . 10 . 8 . Terminals 50 | . 27 . 23 . Fabricators . | . . . . . Repair Stations . | . . . . . Recycling Units . | . . . . . Scanalyzers 1 | . . . 1 . Garrison Access 2 | . . . 2 . Terminal Hacks 29 | . 14 7 8 . Record 6 | . . 6 . . Part Schematic 2 | . 2 . . . Prototype ID Bank 3 | . 2 . 1 . Branch Access Points 1 | . . . 1 . Terminal Index 1 | . . . 1 . Alert Level 1 | . . . 1 . Locate Traps 4 | . 4 . . . Dispatch Records 3 | . 1 . 2 . Transport Status 1 | . 1 . . . Hauler Manifests 1 | . 1 . . . Registered Components 2 | . 1 . 1 . Zone Layout 3 | . 2 . 1 . Derelict Proto ID Bank 1 | . . 1 . . Fabricator Hacks . | . . . . . Repair Station Hacks . | . . . . . Recycling Unit Hacks . | . . . . . Scanalyzer 1 | . . . 1 . Insert Component 1 | . . . 1 . Garrison Access Hacks 2 | . . . 2 . Unlock Access 1 | . . . 1 . Coupler Status 1 | . . . 1 . Unauthorized Hacks 7 | . 3 . 4 . Terminals 7 | . 3 . 4 . Track 1 | . . . 1 . Botnet 6 | . 3 . 3 . Fabricators . | . . . . . Repair Stations . | . . . . . Recycling Units . | . . . . . Scanalyzers . | . . . . . Garrison Access . | . . . . . Data Cores Recovered . | . . . . . Used . | . . . . . Hacking Detections 14 | . 8 . 6 . Full Trace Events . | . . . . . Feedback Events . | . . . . . Feedback Blocked . | . . . . . Robot Schematics Acquired . | . . . . . Robots Built . | . . . . . Authchips . | . . . . . Time . | . . . . . Total Robot Build Rating . | . . . . . Part Schematics Acquired 1 | . 1 . . . Parts Built . | . . . . . Authchips . | . . . . . Time . | . . . . . Total Part Build Rating . | . . . . . Parts Repaired . | . . . . . Time . | . . . . . Parts Recycled . | . . . . . Recycled Matter . | . . . . . Retrieved Matter . | . . . . . Retrieved Components . | . . . . . Parts Scanalyzed . | . . . . . Part Schematics Acquired . | . . . . . Parts Damaged . | . . . . . Bothacking | -11 -10 -10 -8 -8 ------------ Run | Yrd Mat Sub Mat Gar Used RIF Installer . | . . . . . Robots Hacked 1 | . . . 1 . Non-combat 1 | . . . 1 . Combat . | . . . . . Robot Hacks Applied 1 | . . . 1 . parse_system 1 | . . . 1 . Relay Couplers Released . | . . . . . Fabnet Peak Effective % . | . . . . . Robots Rewired . | . . . . . Allies Hacked . | . . . . . Hacks Repelled . | . . . . . Allies | -11 -10 -10 -8 -8 -------- Run | Yrd Mat Sub Mat Gar Total Allies . | . . . . . Largest Group . | . . . . . Highest-Rated Group . | . . . . . Highest-Rated Ally . | . . . . . Total Orders . | . . . . . Ally Attacks . | . . . . . Total Damage . | . . . . . Kills . | . . . . . Allies Corrupted . | . . . . . Allies Melted . | . . . . . Intel | -11 -10 -10 -8 -8 ------- Run | Yrd Mat Sub Mat Gar Robot Analysis Total . | . . . . . Derelict Logs Recovered 2 | . . 2 . . Drone Launches . | . . . . . Drone Recoveries . | . . . . . Exploration | -11 -10 -10 -8 -8 ------------- Run | Yrd Mat Sub Mat Gar Turns Passed 10753 | 74 1789 4617 3848 425 Spaces Moved 5092 | 39 739 2614 1512 188 Core 2 | 2 . . . . Treads 3590 | 37 739 2614 200 . Legs . | . . . . . Wheels 1500 | . . . 1312 188 Hover . | . . . . . Flight . | . . . . . Fastest Speed 50 | 50 160 160 145 145 Average Speed 159 | 154 160 160 158 159 Slowest Speed 175 | 160 160 160 175 160 Overloaded Moves . | . . . . . Propulsion Burnouts . | . . . . . Robots Hopped . | . . . . . Cave-ins Triggered 1 | . . . 1 . Exploration Rate (%) 62 | 3 99 97 79 32 Regions Visited 4 Branch Regions 1 Pre-discovered Areas 2 | . . 2 . . Known Exits Taken 1 | . . . 1 . Unknown Exits Taken 3 | 1 1 1 . . Scrap Searched 5 | . . 5 . . Spaces Dug 147 | . 36 48 63 . Terrain Destroyed 270 | . 58 77 135 . Melee 21 | . . . 21 . Projectile 64 | . . 29 35 . AOE 185 | . 58 48 79 . Terrain Rammed . | . . . . . Walls Destroyed . | . . . . . Machines Disabled . | . . . . . Actions | -11 -10 -10 -8 -8 --------- Run | Yrd Mat Sub Mat Gar Total 7231 | 50 1301 2918 2710 252 Wait 1512 | . 484 120 902 6 Move 5088 | 38 738 2613 1511 188 Hop . | . . . . . Pick Up 77 | 6 15 22 33 1 Fast Attach 24 | 6 3 2 12 1 Attach 21 | . . 3 10 8 Detach 3 | . . 2 1 . Swap 83 | . 13 16 52 2 Drop 86 | . 18 27 41 . Fire 289 | . 30 105 124 30 Melee 22 | . . . 22 . Ram . | . . . . . Kick . | . . . . . Crush . | . . . . . Escape Stasis 17 | . . . 1 16 Rewire . | . . . . . Trap . | . . . . . Miscellaneous 9 | . . 8 1 . Route ------- -11/Scrapyard -10/Materials (discovered 6 exits: [*Mat x3] / [*Min x2] / *Sub) -10/Subcaves (discovered 3 exits: *Mat x2 / [*Rec]) -8/Materials (discovered 3 exits: [*Fac x2] / Gar) -8/Garrison (discovered 1 exit: [*Mat]) History --------- Turn | Location | Event 15 | -11/Scrapyard | Discovered new exit (range 15) 75 | -11/Scrapyard | Entered Materials 322 | -10/Materials | Build established: Mutant 432 | -10/Materials | Discovered new exit (range 8) 600 | -10/Materials | Discovered new exit (range 16) 785 | -10/Materials | Discovered new exit (range 11) 1163 | -10/Materials | Discovered new exit (range 8) 1276 | -10/Materials | Discovered new exit (range 16) 1366 | -10/Materials | Discovered new exit (range 16) 1864 | -10/Materials | Entered Subcaves 1933 | -10/Subcaves | Ambushed by Subdwellers from Twisted Machinery 2168 | -10/Subcaves | Shifting Twisted Machinery released Sub. Monowheel 2203 | -10/Subcaves | Shifting Twisted Machinery released Sub. Laser 2565 | -10/Subcaves | Shifting Twisted Machinery released Sub. Beam Cannon 2566 | -10/Subcaves | Shifting Twisted Machinery released Sub. Machine Gun 3503 | -10/Subcaves | Discovered new exit (range 9) 3521 | -10/Subcaves | Disturbed a concealed Subdweller 3672 | -10/Subcaves | Learned location of Mines (-10) 3794 | -10/Subcaves | Discovered new exit (range 10) 3795 | -10/Subcaves | Core integrity fell below 50% 3838 | -10/Subcaves | Build established: Subdweller-Mutant 4298 | -10/Subcaves | A swath of the cavern ceiling suddenly collapsed 4808 | -10/Subcaves | Discovered new exit (range 13) 5037 | -10/Subcaves | Visited Clippyterm 5042 | -10/Subcaves | Learned Research machine intel 6243 | -10/Subcaves | Visited 4L-MR0's lab 6266 | -10/Subcaves | Found Cargo Legs 6481 | -10/Subcaves | Entered Materials 6481 | -8/Materials | Evolved 4 slots: Propulsion x1, Utility x3 7258 | -8/Materials | Build established: Scavenger-Mutant 7956 | -8/Materials | Discovered new exit (range 13) 8233 | -8/Materials | Build established: Mutant 8732 | -8/Materials | Destroyed 7 combat bots 9248 | -8/Materials | Crushed by falling debris 9546 | -8/Materials | Discovered new exit (range 3) 10081 | -8/Materials | First assault squad dispatched 10168 | -8/Materials | Garrison activated, responded to threat 10174 | -8/Materials | Core integrity fell below 50% 10200 | -8/Materials | Destroyed 7 combat bots 10261 | -8/Materials | Lost 5 parts (1n2u2w) 10329 | -8/Materials | Identified exit to Garrison 10329 | -8/Materials | Entered Garrison 10536 | -8/Garrison | Build established: Scavenger-Mutant 10537 | -8/Garrison | Triggered checkpoint 10671 | -8/Garrison | Discovered new exit (range 13) 10711 | -8/Garrison | Core integrity fell below 20% 10712 | -8/Garrison | Triggered checkpoint 10751 | -8/Garrison | Attached Cargo Legs, gained temporary slots: Utility x2 10754 | -8/Garrison | Destroyed by H-55 Commando with Gauss Rifle Last Messages --------------- 10722_ Y-45 Defender destroyed. 10723_ Hrd. Medium Armor Plating destroyed. 10727_ Slug penetrates Wall. 10728_ Y-45 Defender destroyed. 10730_ Slug penetrates Wall. 10733_ Imp. Light Cannon destroyed. 10734_ Critical hit (Burn: +37). 10736_ Penetrated by Slug. 10740_ Com. Wheel destroyed. 10744_ H-55 Commando knocked back. 10745_ Hpw. Shotgun destroyed. 10745_ Critical hit (Burn: +37). 10745_ Critical hit (Destroy). 10745_ Lgt. Treads destroyed. 10748_ Slug penetrates Wall. 10749_ Lgt. Treads destroyed. 10751_ Core temporarily expanded with Utility slot. 10751_ Slug penetrates Wall. 10752_ Y-45 Defender Lgt. Armor Plating blasted off. 10754_ Imp. Light Cannon destroyed. Map ----- +----------------------------------------------------+ | | | | | | | | | | | | | | | | | ??????????????????????????????????????????????? | | ??????????????????????????????????????????????? | | ??????????????????????????????????????????????? | | ??????????????????????####????????????????????? | | ??????????????????????? T#????????????????????? | | ??????????????????????? "????????????????????? | | ??????????????????????? "????????????????????? | | ??????????????????????? #????????????????????? | | ???????????????????????# #????????????????????? | | ?????????????????????### ############?????????? | | ?????????????????????# #?????????? | | ?????????????????????# < #?????????? | | ?????????????????????# #?????????? | | ?????????????????????# #########+##?????????? | | ?????????????????????# #????????????????????? | | ?????????????????????# h!#????????????????????? | | ?????????????????#+###!Y%######???????????????? | | ?????????? ;%=*@ #???????????????? | | ?????????? +*%%=[Y #???????????????? | | ?????????????#####+### %!### #???????????????? | | ?????????????????????# [#?? ^#???????????????? | | ?????????????????????# #??? #???????????????? | | ?????????????????????# #???? ???????????????? | | ?????????????????????# #????? ??????????????? | | ?????????????????????# #????? #?????????????? | | ?????????????????????# #??????#?????????????? | | ?????????????????????# #????????????????????? | | ?????????????????????# #????????????????????? | | ?????????????????????# #????????????????????? | | ?????????????????????# #????????????????????? | | ?????????????????????# #????????????????????? | | ###################### #????????????????????? | | # #????????????????????? | | # #????????????????????? | | # #????????????????????? | | # ######################????????????????????? | | # #?????????????????????????????????????????? | | # #?????????????????????????????????????????? | | # #?????????????????????????????????????????? | | # #?????????????????????????????????????????? | | # #?????????????????????????????????????????? | | # #?????????????????????????????????????????? | +----------------------------------------------------+ Best States ------------- Heat Dissipation 41 Coolant Potential 50 Energy Generation 18 Energy Capacity 310 Matter Stores 300 Matter Capacity 300 Sight Range 16 Terrain Scan Density 10 Armor Coverage 800 Resistance: EM 15 Evasion (%) 40 Recoil Reduction 3 Offensive Hacking 10 Item Schematics ----------------- Huge Storage Unit | -10/Materials | Hacked Robot Schematics ------------------ None Fabricated ------------ Nothing Alien Tech Used ----------------- None Achievements -------------- None Challenges ------------ None Game ------ Seed PowerServoNetwork Manual? 0 Play Time 02:13:21 Cumulative 159.7 hours Start 2024.05.16 @ 17:52:31 End 2024.05.16 @ 20:11:20 Sessions 1 Manual Loads 0 Difficulty Rogue Special Mode None Game No. 99 Rogue 99 Adventurer 0 Explorer 0 Win Type - Total 4 Types 4/0/0/0/0/0/0/0/0 Lore% 47 Gallery% 57 Achievement% 40 Wizard Run 0 Options --------- Layout 0 ASCII 0 Keyboard 0 Movement Numpad Keybinds 0 Fullscreen 1 Font 24/X11 Map View 76x50 Zoom Use 0% Tactical HUD 1 Map Filters NONE Filters NONE Steam 1 RUN: b1c11844-f545-40bc-bba7-1991daab6166